Cogmind - Beta 13 @@@ ROGUE MODE // 2024.04.06 @ 04:03:14 Player: Iris Result: Destroyed by D-53 Grenadier with Mini Grenade Launcher Performance ------------- Evolutions (1) 500 Regions Visited (4) 800 Robots Destroyed (39) 195 Value Destroyed (817) 817 Prototype IDs (4) 80 Alien Tech Used (0) 0 Bonus (0) 0 TOTAL SCORE: 2392 Bonus ------- None Cogmind --------- Core Integrity 0/400 Matter 257/300 Energy 100/100 System Corruption 0% Temperature Cool (6) Movement Core (150) Ox2 Location -9/Mines Parts ------- > --- POWER (1) -------- (None) > --- PROPULSION (2) --- (None) > --- UTILITY (4) ------ Signal Interpreter Improved Targeting Computer > --- WEAPON (2) ------- Improved Medium Laser Rocket Launcher > --- INVENTORY (5) ---- Signal Interpreter Improved Medium Laser Heavy Assault Rifle Datajack Flail Peak State ------------ > --- POWER ------------ Ion Engine > --- PROPULSION ------- Compact Wheel Compact Wheel > --- UTILITY ---------- Structural Scanner Experimental Sensor Array Signal Interpreter Improved Targeting Computer > --- WEAPON ----------- Beam Rifle Flail > --- INVENTORY -------- Ion Engine EM Pulse Gun Light Assault Rifle Datajack [Rating: 20] Favorites ----------- Power Ion Engine Engine Ion Engine Propulsion Wheel Leg Aluminum Leg Wheel Wheel Hover Unit Hover Unit Flight Unit Flight Unit Utility Signal Interpreter Device Structural Scanner Storage Small Storage Unit Processor Signal Interpreter Weapon Light Assault Rifle Energy Gun Improved Medium Laser Ballistic Gun Light Assault Rifle Launcher Grenade Launcher Impact Weapon Flail Build | -11 -10 -10 -9 -9 ------- Run | Yrd Mat Min Mat Min Slots Evolved 2 | . . . 2 . Power . | . . . . . Propulsion . | . . . . . Utility 2 | . . . 2 . Weapon . | . . . . . Parts Attached 39 | 7 10 1 20 1 Power 4 | 1 2 . 1 . Engine 4 | 1 2 . 1 . Core . | . . . . . Reactor . | . . . . . Propulsion 12 | 2 3 . 7 . Treads . | . . . . . Leg 2 | . 1 . 1 . Wheel 6 | 2 2 . 2 . Hover 2 | . . . 2 . Flight 2 | . . . 2 . Utility 8 | 1 2 1 4 . Device 4 | . 1 1 2 . Storage 2 | 1 . . 1 . Processor 2 | . 1 . 1 . Hackware . | . . . . . Protection . | . . . . . Artifact . | . . . . . Weapon 15 | 3 3 . 8 1 Energy Gun 7 | 1 . . 6 . Energy Cannon . | . . . . . Ballistic Gun 4 | 2 1 . 1 . Ballistic Cannon . | . . . . . Launcher 3 | . 2 . . 1 Special Weapon . | . . . . . Impact Weapon 1 | . . . 1 . Slashing Weapon . | . . . . . Piercing Weapon . | . . . . . Special Melee Weapon . | . . . . . Unidentified Prototypes 2 | . . 1 1 . Parts Lost 14 | . 2 1 9 2 Power 2 | . . . 1 1 Propulsion 6 | . 1 1 3 1 Utility 2 | . . . 2 . Weapon 4 | . 1 . 3 . Highest Loss Streak 3 | . 2 1 3 2 To Critical Strikes . | . . . . . Average Slot Usage (%) 88 | . 93 100 79 64 Engine 11 | . 13 14 7 9 Leg 1 | . 2 . . 11 Wheel 18 | . 21 28 13 . Device 13 | . 13 14 13 . Storage 1 | . 2 . 1 . Processor 14 | . 11 14 18 22 Energy Gun 5 | . . . 13 12 Ballistic Gun 11 | . 17 14 4 . Launcher 6 | . 8 14 1 9 Naked Turns . | . . . . . Heaviest Build 27 | 12 15 10 27 10 Greatest Support 32 | 20 20 20 32 10 Greatest Overweight (x) 2 | . . . 2 . Average Overweight (x) . | . . . . . Largest Inventory Capacity 15 | 8 8 5 15 5 Average Capacity 5 | 6 5 5 6 5 Most Carried 7 | 1 5 5 7 5 Average Carried 4 | . 3 4 4 4 Final Capacity 8 | 8 5 5 5 5 Final Carried 5 | 1 5 5 5 5 Class Distribution -------------------- 85% | Mutant 13% | Skirmisher Dominant Class ---------------- Mutant | -10/Materials Mutant | -10/Mines Mutant | -9/Materials Mutant | -9/Mines Resources | -11 -10 -10 -9 -9 ----------- Run | Yrd Mat Min Mat Min Matter Collected 807 | 238 293 24 233 19 Remotely . | . . . . . Salvage Created 957 | . 455 72 378 52 Parts 71 | . 34 3 23 11 Haulers Intercepted 3 | . 2 . 1 . Recyclers Shooed 1 | . 1 . . . Parts Field Recycled . | . . . . . Retrieved Matter . | . . . . . Parts Self-Destructed . | . . . . . Prevented . | . . . . . Kills | -11 -10 -10 -9 -9 ------- Run | Yrd Mat Min Mat Min Combat Hostiles Destroyed 27 | . 7 2 11 7 Melee 1 | . . . 1 . Guns 10 | . 2 . 7 1 AOE 15 | . 5 2 2 6 Classes Destroyed 8 | . 6 . 2 . Worker 1 | . 1 . . . Builder 4 | . 4 . . . Hauler 3 | . 2 . 1 . Recycler 1 | . 1 . . . Watcher 3 | . 1 . 2 . Swarmer 13 | . . . 6 7 Grunt 10 | . 7 2 1 . Sentry 4 | . . . 4 . Best Kill Streak 5 | . 5 2 3 4 Combat Bots Only 4 | . 2 2 2 4 Max Kills in Single Turn 3 | . 1 1 3 3 Gunslinging . | . . . . . Exploded 3 | . 1 1 2 3 Melee 1 | . . . 1 . Uniques/NPCs Destroyed . | . . . . . Combat | -11 -10 -10 -9 -9 -------- Run | Yrd Mat Min Mat Min Hostile Shots Fired 154 | . 27 9 99 19 Missed 49 | . 9 2 33 5 Damage Taken 1778 | . 479 90 846 363 Core 596 | . 158 20 273 145 Absorbed by Shields . | . . . . . Regen/Repaired (Parts) 47 | . 47 . . . Core Remaining (%) 64 | 100 . 28 . . Volleys Fired 91 | . 52 2 31 6 Largest 2 | . 2 2 2 2 Hottest 112 | . 50 50 112 89 Shots Fired 160 | . 88 4 56 12 Gun 138 | . 76 2 54 6 Cannon . | . . . . . Launcher 22 | . 12 2 2 6 Special . | . . . . . Kinetic 94 | . 76 2 16 . Thermal 38 | . . . 32 6 Explosive 22 | . 12 2 2 6 Electromagnetic 6 | . . . 6 . Robot Hit Streak 13 | . 13 2 10 2 Robot Miss Streak 4 | . 4 1 4 2 Penetration Max . | . . . . . Secondary Targets 1 | . . . 1 . Max Gunslinging Chain 1 | . . . 1 . Shots Hit Robots 103 | . 54 3 40 6 Core Hits 62 | . 30 4 17 11 Critical Kills 1 | . 1 . . . Critical Parts Destroyed 1 | . . . 1 . Critical Strikes 6 | . 1 . 5 . Burn 3 | . . . 3 . Destroy 2 | . 1 . 1 . Smash 1 | . . . 1 . Melee Attacks 10 | . . . 10 . Impact 10 | . . . 10 . Slashing . | . . . . . Piercing . | . . . . . Sneak Attacks . | . . . . . Combat Hostiles . | . . . . . Follow-up Attacks . | . . . . . Damage Inflicted 2425 | . 1084 131 823 387 Guns 900 | . 385 6 477 32 Cannons . | . . . . . Explosions 1297 | . 667 121 161 348 Melee 185 | . . . 185 . Ramming 43 | . 32 4 . 7 Kinetic 487 | . 385 6 96 . Thermal 512 | . 111 . 369 32 Explosive 1145 | . 556 121 120 348 Electromagnetic 53 | . . . 53 . Impact 185 | . . . 185 . Slashing . | . . . . . Piercing . | . . . . . Highest Corruption . | . . . . . Average Corruption . | . . . . . Corruption Purged . | . . . . . Corruption Blocked . | . . . . . Overload Shots . | . . . . . Overflow Damage 169 | . 61 . 47 61 Projectiles . | . . . . . Explosions 122 | . 61 . . 61 Melee 47 | . . . 47 . Knockbacks . | . . . . . Impact . | . . . . . Kinetic . | . . . . . Secondary . | . . . . . Self-Inflicted Damage 336 | . 257 17 25 37 Shots 9 | . 6 1 1 1 Rammed 5 | . 4 1 . . Targets Rammed 11 | . 9 1 . 1 Kicked 6 | . 5 . . 1 Crushed . | . . . . . Highest Temperature 243 | . 20 19 243 36 Average Temperature 44 | . 9 15 70 9 Received Heat Transfer 411 | . 108 15 288 . Siege Activations . | . . . . . Robots Corrupted . | . . . . . Combat Hostiles . | . . . . . Parts Fried 2 | . . . 2 . Impact Corruptions 2 | . . . 2 . Robots Melted . | . . . . . Combat Hostiles . | . . . . . Parts Melted 4 | . . . 4 . Heat Transferred 1136 | . 50 . 1012 74 Parts Sabotaged . | . . . . . Parts Stolen . | . . . . . Parts Stripped . | . . . . . Power Chain Reactions 1 | . . . 1 . Alert | -11 -10 -10 -9 -9 ------- Run | Yrd Mat Min Mat Min Peak Influence 369 | . 234 120 369 303 Initial 108 | . . 32 42 108 Average 174 | . 153 119 238 210 Maximum Alert Level 1 | . 1 . 1 1 Low Security (%) 57 | 100 62 100 32 22 Level 1 42 | . 37 . 67 77 Level 2 . | . . . . . Level 3 . | . . . . . Level 4 . | . . . . . Level 5 . | . . . . . High Security . | . . . . . Max Security . | . . . . . Squads Dispatched 6 | . 3 . 3 . Investigation 5 | . 2 . 3 . Extermination . | . . . . . Reinforcement 1 | . 1 . . . Assault . | . . . . . Garrison . | . . . . . Intercept . | . . . . . Searches Triggered . | . . . . . Construction Impeded . | . . . . . Haulers Reinforced . | . . . . . Active Scanning Responses . | . . . . . Cargo Convoy Interrupts . | . . . . . Stealth | -11 -10 -10 -9 -9 --------- Run | Yrd Mat Min Mat Min Distress Signals 6 | . 2 . 3 1 Communications Jammed . | . . . . . Distress Signals . | . . . . . Times Spotted 50 | . 14 5 22 9 Peak Tracking Total 7 | . 3 3 7 5 Tactical Retreats 3 | . . . 3 . Traps | -11 -10 -10 -9 -9 ------- Run | Yrd Mat Min Mat Min Traps Triggered 3 | . 1 . 2 . Indirectly . | . . . . . Trap Hack Attempts . | . . . . . Triggered . | . . . . . Disarmed . | . . . . . Reprogrammed . | . . . . . Reused . | . . . . . Traps Extracted . | . . . . . Installed . | . . . . . Triggered . | . . . . . Machines | -11 -10 -10 -9 -9 ---------- Run | Yrd Mat Min Mat Min Machines Disabled 6 | . 4 1 1 . Max in Single Turn 2 | . 2 1 1 . Machines Repaired . | . . . . . Machines Dismantled . | . . . . . Machines Sabotaged . | . . . . . Overloaded Fab Kills . | . . . . . Hacking | -11 -10 -10 -9 -9 --------- Run | Yrd Mat Min Mat Min Machines Accessed 10 | . 4 . 6 . Terminals 8 | . 3 . 5 . Fabricators . | . . . . . Repair Stations 1 | . 1 . . . Recycling Units . | . . . . . Scanalyzers 1 | . . . 1 . Garrison Access . | . . . . . Total Hacks 35 | . 13 . 22 . Successful 24 | . 9 . 15 . Failed 11 | . 4 . 7 . Catastrophic 3 | . 1 . 2 . Database Lockouts . | . . . . . Manual 10 | . 5 . 5 . Terminals 22 | . 9 . 13 . Fabricators . | . . . . . Repair Stations 4 | . 4 . . . Recycling Units . | . . . . . Scanalyzers 9 | . . . 9 . Garrison Access . | . . . . . Terminal Hacks 14 | . 6 . 8 . Record 1 | . . . 1 . Prototype ID Bank 1 | . . . 1 . Terminal Index 2 | . 1 . 1 . Alert Level 2 | . 2 . . . Dispatch Records 1 | . . . 1 . Maintenance Status 2 | . 1 . 1 . Transport Status 2 | . 1 . 1 . Reinforcement Status 1 | . . . 1 . Zone Layout 2 | . 1 . 1 . Fabricator Hacks . | . . . . . Repair Station Hacks 3 | . 3 . . . Scan Component 2 | . 2 . . . Repair 1 | . 1 . . . Recycling Unit Hacks . | . . . . . Scanalyzer 7 | . . . 7 . Insert Component 4 | . . . 4 . Analyze 3 | . . . 3 . Garrison Access Hacks . | . . . . . Unauthorized Hacks . | . . . . . Terminals . | . . . . . Fabricators . | . . . . . Repair Stations . | . . . . . Recycling Units . | . . . . . Scanalyzers . | . . . . . Garrison Access . | . . . . . Data Cores Recovered . | . . . . . Used . | . . . . . Hacking Detections 7 | . 2 . 5 . Full Trace Events 4 | . 2 . 2 . Feedback Events . | . . . . . Feedback Blocked . | . . . . . Robot Schematics Acquired . | . . . . . Robots Built . | . . . . . Authchips . | . . . . . Time . | . . . . . Total Robot Build Rating . | . . . . . Part Schematics Acquired 3 | . . . 3 . Parts Built . | . . . . . Authchips . | . . . . . Time . | . . . . . Total Part Build Rating . | . . . . . Parts Repaired 1 | . 1 . . . Time 36 | . 36 . . . Parts Recycled . | . . . . . Recycled Matter . | . . . . . Retrieved Matter . | . . . . . Retrieved Components . | . . . . . Parts Scanalyzed 3 | . . . 3 . Part Schematics Acquired 3 | . . . 3 . Parts Damaged 1 | . . . 1 . Bothacking | -11 -10 -10 -9 -9 ------------ Run | Yrd Mat Min Mat Min Used RIF Installer . | . . . . . Robots Hacked . | . . . . . Non-combat . | . . . . . Combat . | . . . . . Robot Hacks Applied . | . . . . . Relay Couplers Released . | . . . . . Fabnet Peak Effective % . | . . . . . Robots Rewired . | . . . . . Allies Hacked . | . . . . . Hacks Repelled . | . . . . . Allies | -11 -10 -10 -9 -9 -------- Run | Yrd Mat Min Mat Min Total Allies 3 | . . 3 . . Largest Group 3 | . . 3 . . Highest-Rated Group 40 | . . 40 . . Highest-Rated Ally 16 | . . 16 . . Total Orders . | . . . . . Ally Attacks . | . . . . . Total Damage . | . . . . . Kills . | . . . . . Allies Corrupted . | . . . . . Allies Melted . | . . . . . Intel | -11 -10 -10 -9 -9 ------- Run | Yrd Mat Min Mat Min Robot Analysis Total . | . . . . . Derelict Logs Recovered 2 | . . 2 . . Drone Launches . | . . . . . Drone Recoveries . | . . . . . Exploration | -11 -10 -10 -9 -9 ------------- Run | Yrd Mat Min Mat Min Turns Passed 2007 | 68 803 347 719 70 Spaces Moved 1808 | 72 719 422 555 40 Core 33 | 1 . . 32 . Treads . | . . . . . Legs 149 | . 90 . 19 40 Wheels 1494 | 71 629 422 372 . Hover 116 | . . . 116 . Flight 16 | . . . 16 . Fastest Speed 37 | 50 80 80 37 120 Average Speed 89 | 79 85 80 102 120 Slowest Speed 150 | 80 120 80 150 120 Overloaded Moves . | . . . . . Propulsion Burnouts . | . . . . . Robots Hopped . | . . . . . Cave-ins Triggered . | . . . . . Exploration Rate (%) 46 | 4 83 96 35 13 Regions Visited 4 Branch Regions 2 Pre-discovered Areas 2 | . . 2 . . Known Exits Taken 3 | . 1 1 1 . Unknown Exits Taken 1 | 1 . . . . Scrap Searched 2 | . . 2 . . Spaces Dug . | . . . . . Terrain Destroyed 238 | . 139 12 17 70 Melee . | . . . . . Projectile . | . . . . . AOE 238 | . 139 12 17 70 Terrain Rammed . | . . . . . Walls Destroyed . | . . . . . Machines Disabled . | . . . . . Actions | -11 -10 -10 -9 -9 --------- Run | Yrd Mat Min Mat Min Total 2027 | 79 836 428 634 50 Wait 43 | . 38 . 5 . Move 1804 | 71 718 421 554 40 Hop . | . . . . . Pick Up 6 | . 3 1 2 . Fast Attach 33 | 7 7 1 17 1 Attach 6 | . 3 . 3 . Detach 10 | 1 4 . 4 1 Swap . | . . . . . Drop 13 | . 2 2 8 1 Fire 91 | . 52 2 31 6 Melee 10 | . . . 10 . Ram 5 | . 4 1 . . Kick 6 | . 5 . . 1 Crush . | . . . . . Escape Stasis . | . . . . . Rewire . | . . . . . Trap . | . . . . . Miscellaneous . | . . . . . Route ------- -11/Scrapyard -10/Materials (discovered 3 exits: *Mat x2 / *Min) -10/Mines (discovered 2 exits: *Mat x2) -9/Materials (discovered 2 exits: *Mat / *Min) -9/Mines History --------- Turn | Location | Event 22 | -11/Scrapyard | Discovered new exit (range 16) 69 | -11/Scrapyard | Entered Materials 185 | -10/Materials | Discovered new exit (range 14) 318 | -10/Materials | Build established: Mutant 337 | -10/Materials | Discovered new exit (range 10) 346 | -10/Materials | Identified exit to Materials 492 | -10/Materials | Core integrity fell below 50% 716 | -10/Materials | Repaired Broken Ion Engine 798 | -10/Materials | Discovered exit to Materials (range 16) 847 | -10/Materials | Identified exit to Mines 872 | -10/Materials | Entered Mines 890 | -10/Mines | Discovered exit to Materials (range 11) 905 | -10/Mines | Assisted by bots powering up and referring to "LRC-V3" 1018 | -10/Mines | Learned location of Zion (-7) 1083 | -10/Mines | Learned location of Storage (-8) 1130 | -10/Mines | Found a damaged Exp. Sensor Array with a note attached 1132 | -10/Mines | Found Prototype Device 1132 | -10/Mines | Identified Exp. Sensor Array 1215 | -10/Mines | Discovered exit to Materials (range 6) 1219 | -10/Mines | Entered Materials 1219 | -9/Materials | Evolved 2 slots: Utility x2 1365 | -9/Materials | Lost 3 parts (1n2w) 1528 | -9/Materials | Discovered new exit (range 3) 1530 | -9/Materials | Identified exit to Materials 1660 | -9/Materials | Discovered new exit (range 7) 1713 | -9/Materials | Core integrity fell below 50% 1746 | -9/Materials | Lost 3 parts (2n1u) 1748 | -9/Materials | Identified exit to Mines 1938 | -9/Materials | Entered Mines 1945 | -9/Mines | Received a Rocket Launcher from a helpful Derelict 1964 | -9/Mines | Assembled infested the area 2002 | -9/Mines | Core integrity fell below 20% 2008 | -9/Mines | Destroyed by D-53 Grenadier with Mini Grenade Launcher Last Messages --------------- 01966_ Acquired 6 matter. 01967_ Acquired 5 matter. 01969_ U-05 Engineer lays Concrete. 01973_ R-06 Scavenger collects Lgt. Assault Rifle. 01974_ U-05 Engineer builds a Wall. 01977_ R-06 Scavenger collects Flight Unit. 01982_ C-30 ARC bursts open, deploying its payload. 01982_ D-53 Grenadier unfolds itself. 01987_ Kicked T-07 Excavator. 01987_ T-07 Excavator sends out distress signal. 01991_ S-10 Pest destroyed. 01991_ Destroyed Flight Unit. 01991_ S-10 Pest destroyed. 01991_ Lgt. Ion Engine destroyed. 01991_ Destroyed Lgt. Ion Engine. 01994_ S-10 Pest destroyed. 02005_ Aluminum Leg destroyed. 02007_ The unstable cave ceiling collapses. Map ----- +----------------------------------------------------+ | ??????????????????????????????????????????????? | | ??????????????????????????????????????????????? | | ??????????????????????????????????????????????? | | ??????????????????????????????????????????????? | | ??????????????????????????????????????????????? | | ??????????????????????????????????????????????? | | ??????????????????????????????????????????????? | | ???????????? ????????????????????????????????? | | ???????????# ????????????????????????????????? | | ???????????# ????????????????????????????????? | | ???????????# ????????????????????????????????? | | ???????????# ????????????????????????????????? | | ???????????# ?????????????"??? ?????????????? | | ???????????# ?????????????""" ??????????????? | | ???????????# #??????????? """ ??????????????? | | ???????????# #??????????? ???????????????? | | ???????????# #??????????? ???????????????? | | ???????????#% #??????????? #???????????????? | | ???????????# ##?#####???? ????????????????? | | ???????????# ### #???? ????????????????? | | ???????????# ##### ?????????????????? | | ???????????# ## ##????????????????? | | ???????????# ## ##???????????????? | | ???????????## #### #???????????????? | | ??????????### # # ###?????????????? | | ??????????# #*# # @ #?????????????? | | ?????#??### # d # #?????????????? | | ?????# ## = # d #???????????????? | | ?????# # # ##???????????????? | | ?????# ##????????????????? | | ?????#### # ### #####?????????????????? | | ????????#### ##?#### #?????????????????????? | | ???????????## ##?????# #?????????????????????? | | ????????????# ##?????# ?????????????????????? | | ????????????# #?????###?????????????????????? | | ????????????# [ #?????????????????????????????? | | ????????????# ##?????????????????????????????? | | ????????????# #??????????????????????????????? | | ??????????? #??????????????????????????????? | | ?????????? #??????????????????????????????? | | ????????? ######??????????????????????????????? | | ???????" ?????????????????????????????????????? | | ??????""??????????????????????????????????????? | | ?????""???????????????????????????????????????? | | ??????????????????????????????????????????????? | | ??????????????????????????????????????????????? | | ??????????????????????????????????????????????? | | ??????????????????????????????????????????????? | | ??????????????????????????????????????????????? | | ??????????????????????????????????????????????? | +----------------------------------------------------+ Best States ------------- Heat Dissipation 38 Energy Generation 10 Energy Capacity 250 Matter Stores 300 Matter Capacity 300 Sight Range 16 Robot Scan Range 20 Terrain Scan Density 10 Evasion (%) 62 Targeting Accuracy 6 Item Schematics ----------------- Datajack | -9/Materials | Scanalyzed Lgt. Assault Rifle | -9/Materials | Scanalyzed Ion Engine | -9/Materials | Scanalyzed Robot Schematics ------------------ None Fabricated ------------ Nothing Alien Tech Used ----------------- None Achievements -------------- None Challenges ------------ None Game ------ Seed ThrusterGlidesysBank Manual? 0 Play Time 00:20:53 Cumulative 9.8 hours Start 2024.04.06 @ 03:42:19 End 2024.04.06 @ 04:03:14 Sessions 1 Manual Loads 0 Difficulty Rogue Special Mode None Game No. 29 Rogue 29 Adventurer 0 Explorer 0 Win Type - Total 0 Types 0/0/0/0/0/0/0/0/0 Lore% 13 Gallery% 19 Achievement% 17 Wizard Run 0 Options --------- Layout 2 ASCII 0 Keyboard 1 Movement Arrows Keybinds 0 Fullscreen 2 Font 32/SmallcapsGlow Map View 50x44 Zoom Use 0% Tactical HUD 1 Map Filters NONE Filters NONE Steam 1 RUN: 32ba1e46-f1fe-401d-984b-272900bafa0b